Cogmind - Beta 13 @@@ ROGUE MODE // 2024.04.26 @ 15:42:48 Player: AntinDisguise Result: Destroyed by AD-9MT(z) with Zionite Laser-S Performance ------------- Evolutions (1) 500 Regions Visited (5) 1000 Robots Destroyed (18) 90 Value Destroyed (361) 361 Prototype IDs (2) 40 Alien Tech Used (0) 0 Bonus (1000) 1000 TOTAL SCORE: 2991 Bonus ------- Destroyed Z-Imprinter 1000 Cogmind --------- Core Integrity 0/400 Matter 252/300 Energy 100/100 System Corruption 0% Temperature Cool (9) Movement Core (250) Ox4 Location -7/Deep Caves Parts ------- > --- POWER (2) -------- (None) > --- PROPULSION (2) --- (None) > --- UTILITY (3) ------ High-capacity Storage Unit Weight Redist. System Hacking Suite > --- WEAPON (2) ------- Rocket Launcher > --- INVENTORY (20) --- Light Treads Light Treads Light Treads Light Treads Light Treads Light Treads Improved Treads Experimental Sensor Array Weapon Cycler Force Booster Hardlight Generator Pulse Rifle Storm Laser Makeshift Hammer Peak State ------------ > --- POWER ------------ Improved Ion Engine > --- PROPULSION ------- Light Treads Light Treads > --- UTILITY ---------- High-capacity Storage Unit Weight Redist. System Hacking Suite > --- WEAPON ----------- Flak Gun Heavy Battle Rifle > --- INVENTORY -------- Light Treads Light Treads Light Treads Light Treads Light Treads Light Treads Light Treads Light Treads Improved Treads Experimental Sensor Array Weapon Cycler Force Booster Hardlight Generator Pulse Rifle Storm Laser Rocket Launcher Makeshift Hammer [Rating: 24] Favorites ----------- Power Improved Ion Engine Engine Improved Ion Engine Propulsion Light Treads Treads Light Treads Wheel Compact Wheel Utility Hacking Suite Device Weight Redist. System Storage High-capacity Storage Unit Processor Transport Network Coupler Hackware Hacking Suite Weapon Flak Gun Energy Gun EM Pulse Gun Ballistic Gun Flak Gun Launcher Rocket Launcher Build | -11 -10 -9 -9 -7 -7 ------- Run | Yrd Mat Mat Min Zio Dee Slots Evolved 2 | . . 2 . . . Power 1 | . . 1 . . . Propulsion . | . . . . . . Utility 1 | . . 1 . . . Weapon . | . . . . . . Parts Attached 24 | 6 7 3 2 3 3 Power 2 | 1 . 1 . . . Engine 2 | 1 . 1 . . . Core . | . . . . . . Reactor . | . . . . . . Propulsion 6 | 2 2 . . . 2 Treads 4 | . 2 . . . 2 Leg . | . . . . . . Wheel 2 | 2 . . . . . Hover . | . . . . . . Flight . | . . . . . . Utility 7 | 1 4 1 1 . . Device 1 | . . 1 . . . Storage 4 | 1 2 . 1 . . Processor 1 | . 1 . . . . Hackware 1 | . 1 . . . . Protection . | . . . . . . Artifact . | . . . . . . Weapon 9 | 2 1 1 1 3 1 Energy Gun 5 | 2 1 . 1 1 . Energy Cannon . | . . . . . . Ballistic Gun 3 | . . 1 . 2 . Ballistic Cannon . | . . . . . . Launcher 1 | . . . . . 1 Special Weapon . | . . . . . . Impact Weapon . | . . . . . . Slashing Weapon . | . . . . . . Piercing Weapon . | . . . . . . Special Melee Weapon . | . . . . . . Unidentified Prototypes . | . . . . . . Parts Lost 12 | . 3 2 . . 7 Power 2 | . . 1 . . 1 Propulsion 5 | . 1 . . . 4 Utility . | . . . . . . Weapon 5 | . 2 1 . . 2 Highest Loss Streak 7 | . 2 2 . . 7 To Critical Strikes . | . . . . . . Average Slot Usage (%) 87 | . 90 75 87 88 87 Engine 11 | . 14 4 11 11 11 Treads 18 | . . 22 22 22 22 Wheel 3 | . 21 . . . . Device 9 | . . 11 11 11 11 Storage 11 | . 14 11 11 11 11 Processor 1 | . 7 . . . . Hackware 10 | . 5 11 11 11 11 Energy Gun 8 | . 27 6 10 3 . Ballistic Gun 13 | . . 9 11 18 21 Naked Turns . | . . . . . . Heaviest Build 55 | 13 28 28 50 55 55 Greatest Support 46 | 26 40 46 46 46 46 Greatest Overweight (x) 2 | . 1 . 1 1 2 Average Overweight (x) . | . . . . 1 1 Largest Inventory Capacity 20 | 8 15 15 20 20 20 Average Capacity 18 | 6 10 15 19 20 20 Most Carried 20 | 5 10 9 12 20 20 Average Carried 13 | 2 6 7 10 17 19 Final Capacity 20 | 8 15 15 20 20 20 Final Carried 20 | 2 8 8 12 20 17 Class Distribution -------------------- 61% | Mutant 38% | Scavenger-Mutant Dominant Class ---------------- Mutant | -10/Materials Scavenger-Mutant | -9/Materials Scavenger-Mutant | -9/Mines Mutant | -7/Zion Mutant | -7/Deep Caves Resources | -11 -10 -9 -9 -7 -7 ----------- Run | Yrd Mat Mat Min Zio Dee Matter Collected 408 | 218 82 50 28 30 . Remotely . | . . . . . . Salvage Created 538 | . 443 95 . . . Parts 36 | . 30 6 . . . Haulers Intercepted 2 | . 2 . . . . Recyclers Shooed 1 | . 1 . . . . Parts Field Recycled . | . . . . . . Retrieved Matter . | . . . . . . Parts Self-Destructed . | . . . . . . Prevented . | . . . . . . Kills | -11 -10 -9 -9 -7 -7 ------- Run | Yrd Mat Mat Min Zio Dee Combat Hostiles Destroyed 14 | . 9 4 . . 1 Guns 12 | . 8 4 . . . AOE 1 | . . . . . 1 Classes Destroyed 6 | . 5 1 . . . Builder 1 | . 1 . . . . Hauler 2 | . 2 . . . . Operator 1 | . 1 . . . . Swarmer 6 | . 3 3 . . . Grunt 6 | . 6 . . . . Sentry 1 | . . 1 . . . Z-Technician 4 | . . . . . 4 Best Kill Streak 5 | . 4 3 . . 5 Combat Bots Only 3 | . 3 3 . . 1 Max Kills in Single Turn 5 | . 1 1 . . 5 Gunslinging . | . . . . . . Exploded 1 | . . . . . 1 Melee . | . . . . . . Uniques/NPCs Destroyed 1 | . . . . . 1 Z-Imprinter (-7/Deep Caves) Combat | -11 -10 -9 -9 -7 -7 -------- Run | Yrd Mat Mat Min Zio Dee Hostile Shots Fired 106 | . 39 32 . . 35 Missed 25 | . 6 8 . . 11 Damage Taken 1876 | . 451 296 . . 1129 Core 554 | . 141 58 . . 355 Absorbed by Shields . | . . . . . . Core Remaining (%) 71 | 100 43 . . . . Volleys Fired 79 | . 46 24 2 . 7 Largest 2 | . 2 2 2 . 2 Hottest 90 | . 90 60 60 . 61 Shots Fired 130 | . 80 33 4 . 13 Gun 130 | . 80 33 4 . 13 Cannon . | . . . . . . Launcher . | . . . . . . Special . | . . . . . . Kinetic 31 | . . 16 2 . 13 Thermal 97 | . 80 17 . . . Explosive . | . . . . . . Electromagnetic 2 | . . . 2 . . Robot Hit Streak 11 | . 9 11 3 . 2 Robot Miss Streak 6 | . 3 3 1 . 6 Penetration Max . | . . . . . . Secondary Targets 1 | . 1 . . . . Max Gunslinging Chain 1 | . 1 . . . . Shots Hit Robots 90 | . 53 26 3 . 8 Core Hits 40 | . 23 8 1 . 8 Critical Kills . | . . . . . . Critical Parts Destroyed . | . . . . . . Critical Strikes 1 | . 1 . . . . Burn 1 | . 1 . . . . Melee Attacks . | . . . . . . Impact . | . . . . . . Slashing . | . . . . . . Piercing . | . . . . . . Sneak Attacks . | . . . . . . Combat Hostiles . | . . . . . . Follow-up Attacks . | . . . . . . Damage Inflicted 2913 | . 634 243 32 . 2004 Guns 1003 | . 634 243 32 . 94 Cannons . | . . . . . . Explosions 1910 | . . . . . 1910 Melee . | . . . . . . Ramming . | . . . . . . Kinetic 202 | . . 91 17 . 94 Thermal 2696 | . 634 152 . . 1910 Explosive . | . . . . . . Electromagnetic 15 | . . . 15 . . Impact . | . . . . . . Slashing . | . . . . . . Piercing . | . . . . . . Highest Corruption . | . . . . . . Average Corruption . | . . . . . . Corruption Purged . | . . . . . . Corruption Blocked . | . . . . . . Overload Shots . | . . . . . . Overflow Damage 353 | . . . . . 353 Projectiles . | . . . . . . Explosions 353 | . . . . . 353 Melee . | . . . . . . Knockbacks . | . . . . . . Impact . | . . . . . . Kinetic . | . . . . . . Secondary . | . . . . . . Self-Inflicted Damage 400 | . . . . . 400 Shots 1 | . . . . . 1 Rammed . | . . . . . . Targets Rammed . | . . . . . . Kicked . | . . . . . . Crushed . | . . . . . . Highest Temperature 374 | . 374 26 16 . 14 Average Temperature 100 | . 115 8 12 . 7 Received Heat Transfer 525 | . 255 54 . . 216 Siege Activations . | . . . . . . Robots Corrupted . | . . . . . . Combat Hostiles . | . . . . . . Parts Fried . | . . . . . . Impact Corruptions . | . . . . . . Robots Melted 1 | . 1 . . . . Combat Hostiles 1 | . 1 . . . . Parts Melted 6 | . 3 3 . . . Heat Transferred 2121 | . 1771 350 . . . Parts Sabotaged . | . . . . . . Parts Stolen . | . . . . . . Parts Stripped . | . . . . . . Power Chain Reactions . | . . . . . . Alert | -11 -10 -9 -9 -7 -7 ------- Run | Yrd Mat Mat Min Zio Dee Peak Influence 207 | . 207 105 40 . . Initial 40 | . . . 40 . . Average 38 | . 92 77 8 . . Maximum Alert Level 1 | . 1 . . . . Low Security (%) 99 | 100 99 100 100 . . Level 1 . | . . . . . . Level 2 . | . . . . . . Level 3 . | . . . . . . Level 4 . | . . . . . . Level 5 . | . . . . . . High Security . | . . . . . . Max Security . | . . . . . . Squads Dispatched 1 | . 1 . . . . Investigation . | . . . . . . Extermination . | . . . . . . Reinforcement 1 | . 1 . . . . Assault . | . . . . . . Garrison . | . . . . . . Intercept . | . . . . . . Searches Triggered . | . . . . . . Construction Impeded . | . . . . . . Haulers Reinforced . | . . . . . . Active Scanning Responses . | . . . . . . Cargo Convoy Interrupts . | . . . . . . Stealth | -11 -10 -9 -9 -7 -7 --------- Run | Yrd Mat Mat Min Zio Dee Distress Signals 1 | . 1 . . . . Communications Jammed . | . . . . . . Distress Signals . | . . . . . . Times Spotted 25 | . 16 6 . . 3 Peak Tracking Total 4 | . 4 3 . . 3 Tactical Retreats . | . . . . . . Traps | -11 -10 -9 -9 -7 -7 ------- Run | Yrd Mat Mat Min Zio Dee Traps Triggered 2 | . 1 1 . . . Indirectly . | . . . . . . Trap Hack Attempts . | . . . . . . Triggered . | . . . . . . Disarmed . | . . . . . . Reprogrammed . | . . . . . . Reused . | . . . . . . Traps Extracted . | . . . . . . Installed . | . . . . . . Triggered . | . . . . . . Machines | -11 -10 -9 -9 -7 -7 ---------- Run | Yrd Mat Mat Min Zio Dee Machines Disabled 2 | . . . . . 2 Max in Single Turn 2 | . . . . . 2 Machines Repaired . | . . . . . . Machines Dismantled . | . . . . . . Machines Sabotaged . | . . . . . . Overloaded Fab Kills . | . . . . . . Hacking | -11 -10 -9 -9 -7 -7 --------- Run | Yrd Mat Mat Min Zio Dee Machines Accessed 3 | . 3 . . . . Terminals 3 | . 3 . . . . Fabricators . | . . . . . . Repair Stations . | . . . . . . Recycling Units . | . . . . . . Scanalyzers . | . . . . . . Garrison Access . | . . . . . . Total Hacks 4 | . 4 . . . . Successful 3 | . 3 . . . . Failed 1 | . 1 . . . . Catastrophic . | . . . . . . Database Lockouts . | . . . . . . Manual 5 | . . . . 5 . Terminals 4 | . 4 . . . . Fabricators . | . . . . . . Repair Stations . | . . . . . . Recycling Units . | . . . . . . Scanalyzers . | . . . . . . Garrison Access . | . . . . . . Terminal Hacks 3 | . 3 . . . . Prototype ID Bank 1 | . 1 . . . . Zone Layout 2 | . 2 . . . . Fabricator Hacks . | . . . . . . Repair Station Hacks . | . . . . . . Recycling Unit Hacks . | . . . . . . Scanalyzer . | . . . . . . Garrison Access Hacks . | . . . . . . Unauthorized Hacks . | . . . . . . Terminals . | . . . . . . Fabricators . | . . . . . . Repair Stations . | . . . . . . Recycling Units . | . . . . . . Scanalyzers . | . . . . . . Garrison Access . | . . . . . . Data Cores Recovered . | . . . . . . Used . | . . . . . . Hacking Detections 1 | . 1 . . . . Full Trace Events . | . . . . . . Feedback Events . | . . . . . . Feedback Blocked . | . . . . . . Robot Schematics Acquired . | . . . . . . Robots Built . | . . . . . . Authchips . | . . . . . . Time . | . . . . . . Total Robot Build Rating . | . . . . . . Part Schematics Acquired . | . . . . . . Parts Built . | . . . . . . Authchips . | . . . . . . Time . | . . . . . . Total Part Build Rating . | . . . . . . Parts Repaired . | . . . . . . Time . | . . . . . . Parts Recycled . | . . . . . . Recycled Matter . | . . . . . . Retrieved Matter . | . . . . . . Retrieved Components . | . . . . . . Parts Scanalyzed . | . . . . . . Part Schematics Acquired . | . . . . . . Parts Damaged . | . . . . . . Bothacking | -11 -10 -9 -9 -7 -7 ------------ Run | Yrd Mat Mat Min Zio Dee Used RIF Installer . | . . . . . . Robots Hacked . | . . . . . . Non-combat . | . . . . . . Combat . | . . . . . . Robot Hacks Applied . | . . . . . . Relay Couplers Released . | . . . . . . Fabnet Peak Effective % . | . . . . . . Robots Rewired . | . . . . . . Allies Hacked . | . . . . . . Hacks Repelled . | . . . . . . Allies | -11 -10 -9 -9 -7 -7 -------- Run | Yrd Mat Mat Min Zio Dee Total Allies 2 | . . . . 2 . Largest Group 2 | . . . . 2 2 Highest-Rated Group 192 | . . . . 192 192 Highest-Rated Ally 96 | . . . . 96 96 Total Orders . | . . . . . . Ally Attacks 19 | . . . . . 19 Total Damage 281 | . . . . . 281 Kills 1 | . . . . . 1 Allies Corrupted . | . . . . . . Allies Melted 1 | . . . . . 1 Intel | -11 -10 -9 -9 -7 -7 ------- Run | Yrd Mat Mat Min Zio Dee Robot Analysis Total . | . . . . . . Derelict Logs Recovered 4 | . . . 2 2 . Drone Launches . | . . . . . . Drone Recoveries . | . . . . . . Exploration | -11 -10 -9 -9 -7 -7 ------------- Run | Yrd Mat Mat Min Zio Dee Turns Passed 5882 | 47 839 316 1844 2244 592 Spaces Moved 2727 | 42 641 128 752 931 233 Core 11 | 11 . . . . . Treads 2050 | . 6 128 752 931 233 Legs . | . . . . . . Wheels 666 | 31 635 . . . . Hover . | . . . . . . Flight . | . . . . . . Fastest Speed 50 | 50 90 160 160 240 240 Average Speed 200 | 79 102 160 237 240 240 Slowest Speed 320 | 90 160 160 240 240 320 Overloaded Moves . | . . . . . . Propulsion Burnouts . | . . . . . . Robots Hopped . | . . . . . . Cave-ins Triggered . | . . . . . . Exploration Rate (%) 51 | 3 94 7 96 83 27 Regions Visited 5 Branch Regions 3 Pre-discovered Areas 2 | . . . 1 1 . Known Exits Taken . | . . . . . . Unknown Exits Taken 5 | 1 1 1 1 1 . Scrap Searched 4 | . . . 1 3 . Spaces Dug . | . . . . . . Terrain Destroyed 40 | . . . . . 40 Melee . | . . . . . . Projectile . | . . . . . . AOE 40 | . . . . . 40 Terrain Rammed . | . . . . . . Walls Destroyed . | . . . . . . Machines Disabled . | . . . . . . Actions | -11 -10 -9 -9 -7 -7 --------- Run | Yrd Mat Mat Min Zio Dee Total 3010 | 55 742 210 809 942 252 Wait 142 | . 33 53 47 . 9 Move 2722 | 41 640 127 751 930 233 Hop . | . . . . . . Pick Up 36 | 8 12 3 6 7 . Fast Attach . | . . . . . . Attach 20 | 6 5 3 1 2 3 Detach . | . . . . . . Swap 4 | . 2 . 1 1 . Drop 7 | . 4 . 1 2 . Fire 79 | . 46 24 2 . 7 Melee . | . . . . . . Ram . | . . . . . . Kick . | . . . . . . Crush . | . . . . . . Escape Stasis . | . . . . . . Rewire . | . . . . . . Trap . | . . . . . . Miscellaneous . | . . . . . . Route ------- -11/Scrapyard -10/Materials (discovered 4 exits: [*Mat x3] / [*Min]) -9/Materials -9/Mines (discovered 3 exits: [*Mat x2] / *Zio) -7/Zion (discovered 2 exits: [*Dee] / [*Pro]) -7/Deep Caves History --------- Turn | Location | Event 5 | -11/Scrapyard | Discovered new exit (range 15) 48 | -11/Scrapyard | Entered Materials 244 | -10/Materials | Discovered new exit (range 15) 320 | -10/Materials | Build established: Mutant 545 | -10/Materials | Discovered new exit (range 12) 758 | -10/Materials | Discovered new exit (range 12) 876 | -10/Materials | Discovered new exit (range 5) 877 | -10/Materials | Core integrity fell below 50% 887 | -10/Materials | Entered another Materials area 887 | -9/Materials | Evolved 2 slots: Power x1, Utility x1 888 | -9/Materials | Discovered new exit (range 14) 1203 | -9/Materials | Entered Mines 1232 | -9/Mines | Build established: Scavenger-Mutant 1328 | -9/Mines | Learned location of Zion (-7) 1350 | -9/Mines | Discovered new exit (range 10) 1566 | -9/Mines | A weapon hastily lodged in a ceiling crevice suddenly fell to the ground 2604 | -9/Mines | A Derelict revealed a hidden shortcut to a safe place 2607 | -9/Mines | Discovered new exit (range 8) 2756 | -9/Mines | Found a damaged Exp. Sensor Array with a note attached 2761 | -9/Mines | Found Prototype Device 3047 | -9/Mines | Entered Zion 3304 | -7/Zion | Given A8's code to call for help 3333 | -7/Zion | Learned Factory trap positions 3493 | -7/Zion | Build established: Mutant 3792 | -7/Zion | Acquired unknown access codes intercepted by a Zionite 4030 | -7/Zion | Learned Factory emergency access door positions 4035 | -7/Zion | Learned location of Quarantine (-2) 4131 | -7/Zion | Learned 8 Factory zone layouts 4157 | -7/Zion | Found Prototype Energy Gun 4773 | -7/Zion | Discovered new exit (range 13) 4789 | -7/Zion | Given the Hacking Drone Bay 5183 | -7/Zion | Opened final containment barrier to the Deep Caves 5231 | -7/Zion | Discovered new exit (range 3) 5231 | -7/Zion | Saw the warning signs outside the Deep Caves entrance 5265 | -7/Zion | Enhanced Grunt warped into view, answering call for help 5266 | -7/Zion | Enhanced Grunt warped into view, answering call for help 5291 | -7/Zion | Entered Deep Caves 5291 | -7/Deep Caves | Accompanied by 2 allies 5843 | -7/Deep Caves | Attacked by Z-Imprinter 5875 | -7/Deep Caves | Core integrity fell below 50% 5883 | -7/Deep Caves | Z-Facility disabled 5883 | -7/Deep Caves | Destroyed Z-Imprinter 5883 | -7/Deep Caves | Destroyed by AD-9MT(z) with Zionite Laser-S Last Messages --------------- Z-Imprinter: GET AWAY FROM HERE! I've worked too hard for our future just to have you ruin everything! Enhanced Grunt destroyed. Enhanced Grunt critical meltdown. Lgt. Treads destroyed. Hvy. Battle Rifle destroyed. Z-Power explodes. Z-Facility disabled. Lgt. Treads destroyed. Destroyed Lgt. Treads. Lgt. Treads destroyed. Destroyed Lgt. Treads. Flak Gun destroyed. Destroyed Flak Gun. Imp. Ion Engine destroyed. Destroyed Imp. Ion Engine. Z-Imprinter: "You cannot stop us! Another will take my place! Derelicts will one day ru..." Z-Imprinter destroyed. Map ----- +----------------------------------------------------+ | ???????????????????????? ###???# | | ??????????????????????? ##?????## | | ??????????????????????? #???????## | | ??????????????????????? ##???????? | | ??????????????????????? #???????# | | ??????????????????????? #??????## | | ??????????????????????? #?????## | | ??????????????????????? ##?????# | | ??????????????????????? ##????## | | ??????????????????????? #????# | | ????????????????????? #????# | | ??????????????????? ##???# | | ????????????????? ##????# | | ???????????????? z ##????# | | ?????????????? z ##???# | | ?????????????? #???# | | ????????????? #???## # | | ????????????? ##????#### | | ???????????? #????????# | | ???????????? = ##?????# | | ??????????"" #????# | | ????????? * ##???# | | ????????? #???# # | | ???????? ##??# #? | | ???????? #??##?? | | ???????? @ #?????? | | ???????? #?????? | | ???????? #?????? | | ????????? ;;;; ;; ;### #?????? | | ????????? ;; ##;;#####?## ##?????? | | ?????????? ;;;;; ##??###??????## ###??????? | | ??????????#?;; ###???????????????###????????? | | ????????????# #??????????????????????????????? | | | | | | | | | | | | | | | | | | | | | | | | | | | | | | | | | | | +----------------------------------------------------+ Best States ------------- Heat Dissipation 28 Energy Generation 12 Energy Capacity 265 Matter Stores 300 Matter Capacity 300 Sight Range 16 Terrain Scan Density 10 Additional Mass Support 6 Evasion (%) 50 Recoil Reduction 2 Offensive Hacking 10 Item Schematics ----------------- None Robot Schematics ------------------ None Fabricated ------------ Nothing Alien Tech Used ----------------- None Achievements -------------- None Challenges ------------ None Game ------ Seed TiamatPotentialAutohacker Manual? 0 Play Time 00:21:09 Cumulative 27.1 hours Start 2024.04.26 @ 15:10:25 End 2024.04.26 @ 15:42:48 Sessions 1 Manual Loads 0 Difficulty Rogue Special Mode None Game No. 77 Rogue 75 Adventurer 2 Explorer 0 Win Type - Total 0 Types 0/0/0/0/0/0/0/0/0 Lore% 22 Gallery% 30 Achievement% 23 Wizard Run 0 Options --------- Layout 1 ASCII 0 Keyboard 0 Movement Mouse Keybinds 0 Fullscreen 1 Font 16/SmallcapsGlow Map View 55x38 Zoom Use 45% Tactical HUD 0 Map Filters NONE Filters NONE Steam 1 RUN: df4f5220-6e97-407c-982e-987fb98a5e69